fUST/lending_fUST_20250908
["ID","MTS","AMOUNT","RATE_DAILY","PERIOD"]
[384262779,1757310664034,-480.0,0.00015616,2]
[384262780,1757310664045,-570.07,0.00015616,2]
[384262781,1757310664054,-480.0,0.00015616,2]
[384262782,1757310664064,-2636.56,0.00015616,2]
[384262783,1757310664073,-480.0,0.00015616,2]
[384262784,1757310664083,-601.48,0.00015616,2]
[384262785,1757310664092,-480.0,0.00015616,2]
[384262786,1757310664102,-480.0,0.00015616,2]
[384262787,1757310664111,-480.0,0.00015616,2]
[384262788,1757310664120,-172.27183731,0.00015616,2]
[384262789,1757310664129,-2000.0,0.00015616,2]
[384262790,1757310664139,-2000.0,0.00015616,2]
[384262791,1757310664148,-2000.0,0.00015616,2]
[384262792,1757310664158,-2000.0,0.00015616,2]
[384262793,1757310664167,-501.63624353,0.00015616,2]
[384262794,1757310664177,-2000.0,0.000157,2]
[384262795,1757310664186,-151.0,0.000157,2]
[384262796,1757310664196,-1111.08284564,0.00015766,2]
[384262798,1757310664206,-742.72,0.000158,4]
[384262799,1757310664215,-2500.0,0.00015864,2]
[384262801,1757310664224,-549.08603849,0.00015864,2]
[384262803,1757310664234,-600.0,0.0001589,2]
[384262805,1757310664244,-480.0,0.0001589,2]
[384262807,1757310664254,-480.0,0.0001589,2]
[384262809,1757310664263,-209.49173325,0.0001589,2]
[384262811,1757310664273,-258.38358533,0.0001589,2]
[384262813,1757310664282,-480.0,0.0001589,2]
[384262815,1757310664292,-480.0,0.0001589,2]
[384262817,1757310664301,-480.0,0.0001589,2]
[384262819,1757310664311,-733.2,0.0001589,2]
[384262821,1757310664320,-480.0,0.0001589,2]
[384262823,1757310664330,-480.0,0.0001589,2]
[384262825,1757310664339,-480.0,0.0001589,2]
[384262827,1757310664350,-480.0,0.0001589,2]
[384262830,1757310664361,-480.0,0.0001589,2]
[384262832,1757310664372,-480.0,0.0001589,2]
[384262834,1757310664382,-480.0,0.0001589,2]
[384262836,1757310664391,-480.0,0.0001589,2]
[384262838,1757310664401,-480.0,0.0001589,2]
[384262839,1757310664411,-781.25,0.0001589,2]
[384262842,1757310664422,-480.0,0.0001589,2]
[384262843,1757310664432,-480.0,0.0001589,2]
[384262845,1757310664442,-480.0,0.0001589,2]
[384262847,1757310664451,-480.0,0.0001589,2]
[384262850,1757310664461,-480.0,0.0001589,2]
[384262851,1757310664471,-971.66,0.0001589,2]
[384262854,1757310664481,-480.0,0.0001589,2]
[384262855,1757310664492,-480.0,0.0001589,2]
[384262858,1757310664503,-480.0,0.0001589,2]
[384262860,1757310664512,-480.0,0.0001589,2]
[384262861,1757310664521,-568.13,0.0001589,2]
[384262864,1757310664531,-480.0,0.0001589,2]
[384262865,1757310664540,-4983.26,0.0001589,2]
[384262868,1757310664550,-1038.39,0.0001589,2]
[384262870,1757310664560,-480.0,0.0001589,2]
[384262871,1757310664576,-287.76671787,0.0001589,2]
[384262874,1757310664586,-2849.54,0.0001589,2]
[384262875,1757310664595,-511.56,0.0001589,2]
[384262878,1757310664604,-1374.54,0.0001589,2]
[384262887,1757310664679,-489.86,0.0001589,2]
[384262889,1757310664689,-480.0,0.0001589,2]
[384262891,1757310664699,-1253.23,0.0001589,2]
[384262893,1757310664708,-531.91,0.0001589,2]
[384262894,1757310664717,-805.39,0.0001589,2]
[384262896,1757310664727,-480.0,0.0001589,2]
[384262898,1757310664736,-541.57,0.0001589,2]
[384262900,1757310664746,-1803.99,0.0001589,2]
[384262902,1757310664755,-579.51,0.0001589,2]
[384262904,1757310664764,-480.0,0.0001589,2]
[384262906,1757310664774,-1268.63,0.0001589,2]
[384262908,1757310664784,-480.0,0.0001589,2]
[384262910,1757310664793,-480.0,0.0001589,2]
[384262912,1757310664803,-2349.28,0.0001589,2]
[384262914,1757310664814,-528.06,0.0001589,2]
[384262916,1757310664823,-695.3,0.0001589,2]
[384262918,1757310664833,-480.0,0.0001589,2]
[384262920,1757310664844,-480.0,0.0001589,2]
[384262922,1757310664854,-480.0,0.0001589,2]
[384262924,1757310664864,-1526.58,0.0001589,2]
[384262926,1757310664875,-548.2,0.0001589,2]
[384262928,1757310664885,-480.0,0.0001589,2]
[384262931,1757310664895,-1305.87,0.0001589,2]
[384262933,1757310664905,-480.0,0.0001589,2]
[384262935,1757310664916,-1186.39,0.0001589,2]
[384262936,1757310664925,-600.32,0.0001589,2]
[384262938,1757310664935,-480.0,0.0001589,2]
[384262940,1757310664945,-480.0,0.0001589,2]
[384262942,1757310664955,-480.0,0.0001589,2]
[384262944,1757310664965,-575.99,0.0001589,2]
[384262946,1757310664974,-783.49,0.0001589,2]
[384262948,1757310664983,-690.89,0.0001589,2]
[384262950,1757310664993,-480.0,0.0001589,2]
[384262952,1757310665002,-480.0,0.0001589,2]
[384262954,1757310665012,-480.0,0.0001589,2]
[384262956,1757310665021,-10470.27578806,0.0001589,2]
[384272480,1757310766897,432.835318,0.00012754,2]
[384273027,1757310812343,822.3634116,0.00012664,2]
[384273028,1757310836807,837.62907875,0.00024657,120]
[384273029,1757310862550,176.91289056,0.00013055,2]
[384273034,1757311017066,8567.89837984,0.00012677,2]
[384273035,1757311017089,10000.01,0.00012677,2]
[384273036,1757311017110,10000.01,0.00012677,2]
[384273037,1757311017132,9089.64917066,0.00012677,2]
[384273038,1757311104301,910.36082934,0.00013171,2]
[384273039,1757311104324,4089.63917066,0.00013171,2]
[384273042,1757311628561,-205.81641368,0.00013187,2]
[384273043,1757311628587,-646.65261728,0.00013287,2]
[384273044,1757311628613,-323.32630864,0.00013553,2]
[384273045,1757311628637,-877.32639372,0.0001359,2]
[384273046,1757311628661,-300.0,0.00013595,2]
[384273047,1757311628684,-300.0,0.00013596,2]
[384273048,1757311628707,-300.0,0.00013596,2]
[384273049,1757311628731,-300.0,0.00013596,2]
[384273050,1757311628755,-1200.0,0.00013596,2]
[384273051,1757311628778,-300.0,0.00013596,2]
[384273052,1757311628806,-30000.03,0.00013598,2]
[384273053,1757311628830,-253.48299302,0.0001369,2]
[384273054,1757311628856,-165.85107586,0.00013697,2]
[384273055,1757311628880,-210.87981051,0.00013697,2]
[384273056,1757311628903,-572.18067685,0.00013697,2]
[384273057,1757311628927,-500.0,0.00013697,2]
[384273058,1757311628950,-500.0,0.00013697,2]
[384273059,1757311628973,-295.80746193,0.00013697,2]
[384273060,1757311628997,-245.44379323,0.00013697,2]
[384273061,1757311629022,-500.0,0.00013697,2]
[384273062,1757311629052,-571.58188427,0.00013697,2]
[384273063,1757311629078,-500.0,0.00013697,2]
[384273064,1757311629103,-557.60895007,0.00013697,2]
[384273065,1757311629129,-500.0,0.00013697,2]
[384273066,1757311629154,-500.0,0.00013697,2]
[384273067,1757311629179,-296.65015931,0.00013697,2]
[384273068,1757311629201,-355.61071474,0.00013697,2]
[384273069,1757311629224,-315.38841946,0.00013697,2]
[384273070,1757311629249,-500.0,0.00013697,2]
[384273071,1757311629272,-500.0,0.00013697,2]
[384273072,1757311629294,-500.0,0.00013697,2]
[384273073,1757311629314,-500.0,0.00013697,2]
[384273074,1757311629333,-500.0,0.00013697,2]
[384273075,1757311629353,-500.0,0.00013697,2]
[384273076,1757311629547,-500.0,0.00013697,2]
[384273077,1757311629567,-500.0,0.00013697,2]
[384273078,1757311629587,-500.0,0.00013697,2]
[384273079,1757311629607,-500.0,0.00013697,2]
[384273080,1757311629627,-500.0,0.00013697,2]
[384273081,1757311629647,-500.0,0.00013697,2]
[384273082,1757311629667,-500.0,0.00013697,2]
[384273083,1757311629686,-500.0,0.00013697,2]
[384273084,1757311629705,-500.0,0.00013697,2]
[384273085,1757311629725,-500.0,0.00013697,2]
[384273086,1757311629744,-500.0,0.00013697,2]
[384273087,1757311629763,-500.0,0.00013697,2]
[384273088,1757311629783,-500.0,0.00013697,2]
[384273089,1757311629803,-275.49480256,0.00013697,2]
[384273090,1757311629822,-500.0,0.00013697,2]
[384273091,1757311629841,-480.0,0.00013698,2]
[384273092,1757311629862,-484.37658808,0.00013698,2]
[384273093,1757311629883,-609.50926572,0.00013698,2]
[384273094,1757311629903,-480.0,0.00013698,2]
[384273095,1757311629923,-480.0,0.00013698,2]
[384273096,1757311629943,-480.0,0.00013698,2]
[384273097,1757311629963,-480.0,0.00013698,2]
[384273098,1757311629985,-480.0,0.00013698,2]
[384273099,1757311630005,-480.0,0.00013698,2]
[384273100,1757311630024,-480.0,0.00013698,2]
[384273101,1757311630046,-480.0,0.00013698,2]
[384273102,1757311630071,-484.37420246,0.00013698,2]
[384273103,1757311630091,-480.0,0.00013698,2]
[384273104,1757311630111,-202.44040254,0.00013698,2]
[384273105,1757311630131,-402.72440793,0.00013698,2]
[384273106,1757311630152,-1000.0,0.00013698,2]
[384273107,1757311630172,-480.0,0.00013698,2]
[384273108,1757311630193,-480.0,0.00013698,2]
[384273109,1757311630215,-185.02333357,0.00013698,2]
[384273110,1757311630236,-480.0,0.00013698,2]
[384273111,1757311630258,-480.0,0.00013698,2]
[384273112,1757311630278,-500.0,0.00013698,2]
[384273113,1757311630300,-500.0,0.00013698,2]
[384273114,1757311630320,-500.0,0.00013698,2]
[384273115,1757311630340,-500.0,0.00013698,2]
[384273116,1757311630360,-500.0,0.00013698,2]
[384273117,1757311630380,-500.0,0.00013698,2]
[384273118,1757311630401,-513.27063067,0.00013698,2]
[384273119,1757311630421,-480.0,0.00013698,2]
[384273120,1757311630441,-480.0,0.00013698,2]
[384273121,1757311630463,-480.0,0.00013698,2]
[384273122,1757311630484,-480.0,0.00013698,2]
[384273123,1757311630505,-480.0,0.00013698,2]
[384273124,1757311630526,-480.0,0.00013698,2]
[384273125,1757311630548,-489.4396633,0.00013698,2]
[384273126,1757311630569,-484.53319869,0.00013698,2]
[384273127,1757311630591,-480.0,0.00013698,2]
[384273128,1757311630613,-480.0,0.00013698,2]
[384273129,1757311630633,-482.54577572,0.00013698,2]
[384273130,1757311630654,-480.0,0.00013698,2]
[384273131,1757311630675,-482.6336897,0.00013698,2]
[384273132,1757311630695,-480.0,0.00013698,2]
[384273133,1757311630717,-480.0,0.00013698,2]
[384273134,1757311630738,-480.0,0.00013698,2]
[384273135,1757311630758,-480.0,0.00013698,2]
[384273136,1757311630779,-480.0,0.00013698,2]
[384273137,1757311630801,-480.0,0.00013698,2]
[384273138,1757311630821,-482.41632855,0.00013698,2]
[384273139,1757311630842,-480.0,0.00013698,2]
[384273140,1757311630863,-480.0,0.00013698,2]
[384273141,1757311630883,-481.12341374,0.00013698,2]
[384273142,1757311630904,-480.0,0.00013698,2]
[384273143,1757311630925,-482.86267084,0.00013698,2]
[384273144,1757311630945,-480.0,0.00013698,2]
[384273145,1757311630967,-480.0,0.00013698,2]
[384273146,1757311630988,-480.0,0.00013698,2]
[384273147,1757311631011,-480.0,0.00013698,2]
[384273148,1757311631036,-480.0,0.00013698,2]
[384273149,1757311631071,-480.0,0.00013698,2]
[384273150,1757311631092,-482.21997972,0.00013698,2]
[384273151,1757311631114,-480.0,0.00013698,2]
[384273152,1757311631136,-482.01004658,0.00013698,2]
[384273153,1757311631159,-480.0,0.00013698,2]
[384273154,1757311631179,-482.13729039,0.00013698,2]
[384273155,1757311631199,-485.36611183,0.00013698,2]
[384273156,1757311631220,-502.31883609,0.00013698,2]
[384273157,1757311631241,-480.0,0.00013698,2]
[384273158,1757311631263,-480.0,0.00013698,2]
[384273159,1757311631286,-482.13729039,0.00013698,2]
[384273160,1757311631307,-480.0,0.00013698,2]
[384273161,1757311631331,-480.0,0.00013698,2]
[384273162,1757311631352,-480.73638716,0.00013698,2]
[384273163,1757311631373,-387.48268495,0.00013698,2]
[384273165,1757311720475,100000.0,0.00028804,60]
[384273217,1757311832607,-168.0,0.00013462,2]
[384273232,1757311832732,-176.91289056,0.00013598,2]
[384273234,1757311832742,-767.66059447,0.00013598,2]
[384273236,1757311832751,-5.87808555,0.00013697,2]
[384273529,1757311838617,-294.12191445,0.00013697,2]
[384273531,1757311838627,-480.0,0.00013698,2]
[384273533,1757311838636,-487.63991947,0.00013698,2]
[384273535,1757311838646,-481.01252853,0.00013698,2]
[384273537,1757311838655,-480.0,0.00013698,2]
[384273539,1757311838664,-480.0,0.00013698,2]
[384273541,1757311838673,-480.0,0.00013698,2]
[384273543,1757311838683,-58.46035066,0.00013698,2]
[384273545,1757311838694,-421.53964934,0.00013698,2]
[384273547,1757311838703,-481.79782016,0.00013698,2]
[384273549,1757311838712,-480.0,0.00013698,2]
[384273551,1757311838722,-480.0,0.00013698,2]
[384273553,1757311838731,-480.0,0.00013698,2]
[384273555,1757311838741,-480.0,0.00013698,2]
[384273557,1757311838750,-331.20801702,0.00013698,2]
[384273559,1757311838760,-481.93309428,0.00013698,2]
[384273561,1757311838770,-482.66831065,0.00013698,2]
[384273563,1757311838779,-395.72967543,0.00013698,2]
[384273570,1757311838837,-84.27032457,0.00013698,2]
[384273572,1757311838852,-484.88179262,0.00013698,2]
[384273575,1757311838866,-480.0,0.00013698,2]
[384273577,1757311838879,-480.0,0.00013698,2]
[384273580,1757311838892,-480.0,0.00013698,2]
[384273582,1757311838903,-480.0,0.00013698,2]
[384273584,1757311838915,-356.31912488,0.00013698,2]
[384273586,1757311838927,-480.0,0.00013698,2]
[384273589,1757311838940,-480.0,0.00013698,2]
[384273591,1757311838952,-480.0,0.00013698,2]
[384273593,1757311838965,-480.0,0.00013698,2]
[384273596,1757311838977,-480.0,0.00013698,2]
[384273598,1757311838990,-483.66458422,0.00013698,2]
[384273600,1757311839002,-480.0,0.00013698,2]
[384273603,1757311839015,-480.0,0.00013698,2]
[384273605,1757311839027,-480.0,0.00013698,2]
[384273608,1757311839039,-480.0,0.00013698,2]
[384273610,1757311839051,-480.0,0.00013698,2]
[384273612,1757311839062,-150.95592362,0.00013698,2]
[384273614,1757311839074,-480.0,0.00013698,2]
[384273616,1757311839086,-481.91679043,0.00013698,2]
[384273619,1757311839099,-480.0,0.00013698,2]
[384273621,1757311839115,-480.0,0.00013698,2]
[384273623,1757311839126,-199.18093957,0.00013698,2]
[384273625,1757311839136,-480.0,0.00013698,2]
[384273627,1757311839148,-480.0,0.00013698,2]
[384273630,1757311839159,-480.0,0.00013698,2]
[384273632,1757311839171,-480.0,0.00013698,2]
[384273634,1757311839184,-201.93091251,0.00013698,2]
[384273637,1757311839197,-480.0,0.00013698,2]
[384273639,1757311839209,-480.0,0.00013698,2]
[384273641,1757311839223,-480.0,0.00013698,2]
[384273644,1757311839236,-480.0,0.00013698,2]
[384273646,1757311839248,-480.0,0.00013698,2]
[384273648,1757311839264,-483.53617384,0.00013698,2]
[384273650,1757311839274,-480.0,0.00013698,2]
[384273653,1757311839284,-480.0,0.00013698,2]
[384273655,1757311839294,-194.40714328,0.00013698,2]
[384273779,1757311840620,-289.9890023,0.00013698,2]
[384273782,1757311840631,-480.0,0.00013698,2]
[384273783,1757311840640,-480.0,0.00013698,2]
[384273786,1757311840650,-480.0,0.00013698,2]
[384273787,1757311840659,-480.0,0.00013698,2]
[384273789,1757311840669,-484.31347622,0.00013698,2]
[384273792,1757311840679,-480.0,0.00013698,2]
[384273793,1757311840688,-480.0,0.00013698,2]
[384273795,1757311840698,-480.0,0.00013698,2]
[384273797,1757311840707,-480.0,0.00013698,2]
[384273799,1757311840717,-297.16256522,0.00013698,2]
[384273801,1757311840726,-480.0,0.00013698,2]
[384273803,1757311840736,-480.0,0.00013698,2]
[384273805,1757311840745,-480.0,0.00013698,2]
[384273807,1757311840754,-480.0,0.00013698,2]
[384273809,1757311840763,-480.0,0.00013698,2]
[384273811,1757311840773,-480.0,0.00013698,2]
[384273813,1757311840782,-480.0,0.00013698,2]
[384273815,1757311840791,-480.0,0.00013698,2]
[384273817,1757311840801,-480.0,0.00013698,2]
[384273818,1757311840810,-480.0,0.00013698,2]
[384273820,1757311840819,-480.0,0.00013698,2]
[384273822,1757311840829,-480.0,0.00013698,2]
[384273824,1757311840839,-480.0,0.00013698,2]
[384273826,1757311840848,-480.0,0.00013698,2]
[384273828,1757311840859,-154.13826341,0.00013698,2]
[384273830,1757311840869,-525.28998373,0.00013698,2]
[384273832,1757311840878,-480.0,0.00013698,2]
[384273834,1757311840887,-237.42950701,0.00013698,2]
[384273835,1757311840896,-480.0,0.00013698,2]
[384273837,1757311840905,-522.68659406,0.00013698,2]
[384273839,1757311840916,-480.0,0.00013698,2]
[384273841,1757311840925,-480.0,0.00013698,2]
[384273843,1757311840935,-480.0,0.00013698,2]
[384273845,1757311840943,-224.49535797,0.00013698,2]
[384273847,1757311840953,-480.0,0.00013698,2]
[384273849,1757311840962,-481.80068938,0.00013698,2]
[384273851,1757311840971,-480.0,0.00013698,2]
[384273853,1757311840980,-480.0,0.00013698,2]
[384273855,1757311840990,-480.0,0.00013698,2]
[384273857,1757311840999,-221.9632096,0.00013698,2]
[384273858,1757311841009,-480.0,0.00013698,2]
[384273860,1757311841018,-480.26481152,0.00013698,2]
[384273862,1757311841027,-480.0,0.00013698,2]
[384273864,1757311841037,-483.99121748,0.00013698,2]
[384273866,1757311841046,-480.0,0.00013698,2]
[384273868,1757311841056,-532.66335858,0.00013698,2]
[384273870,1757311841065,-480.0,0.00013698,2]
[384273872,1757311841075,-480.0,0.00013698,2]
[384273874,1757311841084,-480.0,0.00013698,2]
[384273876,1757311841094,-495.71509038,0.00013698,2]
[384273878,1757311841106,-480.0,0.00013698,2]
[384273880,1757311841118,-480.0,0.00013698,2]
[384273882,1757311841128,-481.59540609,0.00013698,2]
[384273884,1757311841137,-480.0,0.00013698,2]
[384273886,1757311841147,-480.0,0.00013698,2]
[384273888,1757311841157,-480.0,0.00013698,2]
[384273890,1757311841166,-480.0,0.00013698,2]
[384273892,1757311841175,-250.14936659,0.00013698,2]
[384273894,1757311841185,-485.80213844,0.00013698,2]
[384273896,1757311841195,-480.0,0.00013698,2]
[384273898,1757311841204,-480.0,0.00013698,2]
[384273900,1757311841214,-480.0,0.00013698,2]
[384273902,1757311841224,-480.0,0.00013698,2]
[384273904,1757311841233,-480.0,0.00013698,2]
[384273906,1757311841242,-480.0,0.00013698,2]
[384273908,1757311841251,-480.0,0.00013698,2]
[384273909,1757311841261,-480.0,0.00013698,2]
[384273911,1757311841271,-480.0,0.00013698,2]
[384273913,1757311841280,-480.0,0.00013698,2]
[384273915,1757311841290,-480.0,0.00013698,2]
[384273917,1757311841299,-480.0,0.00013698,2]
[384273919,1757311841309,-483.29650175,0.00013698,2]
[384273921,1757311841318,-480.0,0.00013698,2]
[384273923,1757311841327,-480.0,0.00013698,2]
[384273925,1757311841337,-480.0,0.00013698,2]
[384273927,1757311841346,-480.0,0.00013698,2]
[384273929,1757311841355,-480.0,0.00013698,2]
[384273931,1757311841364,-480.61745105,0.00013698,2]
[384273933,1757311841373,-480.0,0.00013698,2]
[384273935,1757311841383,-446.56145425,0.00013698,2]
[384273937,1757311841392,-480.0,0.00013698,2]
[384273939,1757311841401,-480.0,0.00013698,2]
[384273941,1757311841411,-483.73220695,0.00013698,2]
[384273943,1757311841420,-480.0,0.00013698,2]
[384273945,1757311841429,-480.0,0.00013698,2]
[384273947,1757311841438,-480.0,0.00013698,2]
[384273949,1757311841448,-480.0,0.00013698,2]
[384273951,1757311841458,-480.0,0.00013698,2]
[384273953,1757311841469,-480.0,0.00013698,2]
[384273955,1757311841479,-43.44450403,0.00013698,2]
[384273957,1757311841492,-436.55549597,0.00013698,2]
[384273959,1757311841502,-480.0,0.00013698,2]
[384273961,1757311841511,-480.0,0.00013698,2]
[384273962,1757311841521,-302.57944759,0.00013698,2]
[384273964,1757311841530,-483.54588587,0.00013698,2]
[384273966,1757311841540,-480.0,0.00013698,2]
[384273969,1757311841550,-480.0,0.00013698,2]
[384273970,1757311841560,-480.0,0.00013698,2]
[384273972,1757311841569,-424.57476102,0.00013698,2]
[384273975,1757311841581,-56.93712662,0.00013698,2]
[384273977,1757311841589,-483.69540513,0.00013698,2]
[384273979,1757311841599,-480.0,0.00013698,2]
[384273981,1757311841608,-480.0,0.00013698,2]
[384273982,1757311841617,-306.24412373,0.00013698,2]
[384273985,1757311841628,-173.75587627,0.00013698,2]
[384273987,1757311841638,-480.0,0.00013698,2]
[384273989,1757311841647,-491.28862164,0.00013698,2]
[384273991,1757311841656,-287.43282693,0.00013698,2]
[384273992,1757311841665,-480.0,0.00013698,2]
[384273994,1757311841674,-480.0,0.00013698,2]
[384273996,1757311841683,-387.62730089,0.00013698,2]
[384273998,1757311841693,-487.84501358,0.00013698,2]
[384274000,1757311841702,-410.29713833,0.00013698,2]
[384274018,1757311841861,-73.65663635,0.00013698,2]
[384274020,1757311841870,-481.64997961,0.00013698,2]
[384274022,1757311841880,-480.0,0.00013698,2]
[384274024,1757311841890,-282.70158971,0.00013698,2]
[384274026,1757311841901,-197.29841029,0.00013698,2]
[384274028,1757311841911,-489.76596619,0.00013698,2]
[384274030,1757311841920,-481.39080992,0.00013698,2]
[384274032,1757311841930,-480.0,0.00013698,2]
[384274034,1757311841939,-486.43387931,0.00013698,2]
[384274036,1757311841949,-522.66500217,0.00013698,2]
[384274038,1757311841958,-480.0,0.00013698,2]
[384274040,1757311841968,-480.0,0.00013698,2]
[384274042,1757311841979,-480.0,0.00013698,2]
[384274044,1757311841988,-480.0,0.00013698,2]
[384274046,1757311841997,-480.0,0.00013698,2]
[384274048,1757311842006,-480.0,0.00013698,2]
[384274050,1757311842015,-492.87643169,0.00013698,2]
[384274052,1757311842024,-485.55828457,0.00013698,2]
[384274054,1757311842034,-834.62,0.00013698,2]
[384274056,1757311842043,-480.0,0.00013698,2]
[384274057,1757311842052,-480.0,0.00013698,2]
[384274059,1757311842061,-480.0,0.00013698,2]
[384274061,1757311842071,-480.0,0.00013698,2]
[384274063,1757311842081,-480.0,0.00013698,2]
[384274065,1757311842090,-480.0,0.00013698,2]
[384274067,1757311842099,-480.0,0.00013698,2]
[384274069,1757311842114,-480.0,0.00013698,2]
[384274071,1757311842123,-480.0,0.00013698,2]
[384274073,1757311842133,-480.0,0.00013698,2]
[384274075,1757311842142,-480.0,0.00013698,2]
[384274077,1757311842151,-480.0,0.00013698,2]
[384274079,1757311842161,-480.0,0.00013698,2]
[384274081,1757311842170,-480.0,0.00013698,2]
[384274083,1757311842179,-480.0,0.00013698,2]
[384274085,1757311842189,-903.74,0.00013698,2]
[384274087,1757311842198,-480.0,0.00013698,2]
[384274089,1757311842207,-480.0,0.00013698,2]
[384274091,1757311842217,-480.0,0.00013698,2]
[384274093,1757311842226,-480.0,0.00013698,2]
[384274095,1757311842236,-1955.62,0.00013698,2]
[384274097,1757311842245,-7999.62,0.00013698,2]
[384274099,1757311842255,-482.61060257,0.00013698,2]
[384274101,1757311842264,-480.0,0.00013698,2]
[384274103,1757311842273,-553.89,0.00013698,2]
[384274105,1757311842283,-480.0,0.00013698,2]
[384274107,1757311842292,-480.0,0.00013698,2]
[384274109,1757311842301,-480.0,0.00013698,2]
[384274111,1757311842311,-783.27,0.00013698,2]
[384274113,1757311842319,-483.04445393,0.00013698,2]
[384274115,1757311842329,-480.0,0.00013698,2]
[384274117,1757311842338,-480.0,0.00013698,2]
[384274119,1757311842347,-480.0,0.00013698,2]
[384274121,1757311842355,-480.0,0.00013698,2]
[384274123,1757311842365,-480.0,0.00013698,2]
[384274125,1757311842374,-480.0,0.00013698,2]
[384274127,1757311842383,-488.80007847,0.00013698,2]
[384274129,1757311842393,-480.0,0.00013698,2]
[384274131,1757311842402,-671.6,0.00013698,2]
[384274133,1757311842412,-480.0,0.00013698,2]
[384274135,1757311842421,-480.0,0.00013698,2]
[384274137,1757311842431,-516.28,0.00013698,2]
[384274139,1757311842440,-480.0,0.00013698,2]
[384274141,1757311842450,-480.0,0.00013698,2]
[384274143,1757311842459,-480.0,0.00013698,2]
[384274145,1757311842468,-480.0,0.00013698,2]
[384274147,1757311842478,-480.0,0.00013698,2]
[384274149,1757311842488,-480.0,0.00013698,2]
[384274151,1757311842497,-1172.2,0.00013698,2]
[384274153,1757311842506,-480.0,0.00013698,2]
[384274155,1757311842515,-503.8374256,0.00013698,2]
[384274157,1757311842524,-480.0,0.00013698,2]
[384274159,1757311842533,-480.0,0.00013698,2]
[384274161,1757311842542,-480.0,0.00013698,2]
[384274163,1757311842551,-480.0,0.00013698,2]
[384274165,1757311842561,-504.33728506,0.00013698,2]
[384274167,1757311842570,-480.0,0.00013698,2]
[384274169,1757311842579,-480.0,0.00013698,2]
[384274171,1757311842588,-675.41,0.00013698,2]
[384274173,1757311842597,-194.07084565,0.00013698,2]
[384274175,1757311842607,-538.19,0.00013698,2]
[384274177,1757311842615,-480.0,0.00013698,2]
[384274178,1757311842625,-480.0,0.00013698,2]
[384274180,1757311842634,-501.87603153,0.00013698,2]
[384274182,1757311842643,-480.0,0.00013698,2]
[384274184,1757311842653,-480.0,0.00013698,2]
[384274186,1757311842662,-480.0,0.00013698,2]
[384274188,1757311842671,-480.0,0.00013698,2]
[384274189,1757311842681,-480.0,0.00013698,2]
[384274190,1757311842690,-480.0,0.00013698,2]
[384274191,1757311842699,-521.13,0.00013698,2]
[384274192,1757311842708,-480.0,0.00013698,2]
[384274193,1757311842718,-569.44,0.00013698,2]
[384274194,1757311842728,-482.91256193,0.00013698,2]
[384274196,1757311842738,-480.0,0.00013698,2]
[384274198,1757311842747,-516.12,0.00013698,2]
[384274200,1757311842756,-481.0386721,0.00013698,2]
[384274202,1757311842766,-480.0,0.00013698,2]
[384274204,1757311842775,-480.0,0.00013698,2]